fUST/lending_fUST_20241211
["ID","MTS","AMOUNT","RATE_DAILY","PERIOD"]
[344997095,1733913047428,-500.0,0.00024989,2]
[344997098,1733913047441,-500.0,0.00024989,2]
[344997100,1733913047455,-500.0,0.00024989,2]
[344997102,1733913047469,-500.0,0.00024989,2]
[344997103,1733913047482,-500.0,0.00024989,2]
[344997104,1733913047498,-500.0,0.00024989,2]
[344997105,1733913047509,-500.0,0.00024989,2]
[344997106,1733913047520,-500.0,0.00024989,2]
[344997107,1733913047532,-500.0,0.00024989,2]
[344997108,1733913047544,-384.81955198,0.00024989,2]
[344997109,1733913047557,-500.0,0.00024989,2]
[344997110,1733913047571,-500.0,0.00024989,2]
[344997111,1733913047586,-500.0,0.00024989,2]
[344997112,1733913047596,-500.0,0.00024989,2]
[344997113,1733913047608,-500.0,0.00024989,2]
[344997114,1733913047623,-500.0,0.00024989,2]
[344997115,1733913047636,-500.0,0.00024989,2]
[344997116,1733913047647,-500.0,0.00024989,2]
[344997117,1733913047660,-500.0,0.00024989,2]
[344997118,1733913047671,-500.0,0.00024989,2]
[344997119,1733913047682,-500.0,0.00024989,2]
[344997120,1733913047695,-500.0,0.00024989,2]
[344997121,1733913047707,-500.0,0.00024989,2]
[344997122,1733913047720,-500.0,0.00024989,2]
[344997123,1733913047732,-500.0,0.00024989,2]
[344997124,1733913047743,-500.0,0.00024989,2]
[344997125,1733913047756,-500.0,0.00024989,2]
[344997126,1733913047767,-500.0,0.00024989,2]
[344997128,1733913047778,-500.0,0.00024989,2]
[344997130,1733913047789,-500.0,0.00024989,2]
[344997132,1733913047800,-500.0,0.00024989,2]
[344997134,1733913047813,-500.0,0.00024989,2]
[344997136,1733913047825,-500.0,0.00024989,2]
[344997138,1733913047836,-500.0,0.00024989,2]
[344997140,1733913047848,-500.0,0.00024989,2]
[344997142,1733913047859,-500.0,0.00024989,2]
[344997144,1733913047871,-500.0,0.00024989,2]
[344997146,1733913047883,-500.0,0.00024989,2]
[344997148,1733913047895,-500.0,0.00024989,2]
[344997151,1733913047906,-500.0,0.00024989,2]
[344997153,1733913047919,-500.0,0.00024989,2]
[344997155,1733913047931,-500.0,0.00024989,2]
[344997157,1733913047942,-500.0,0.00024989,2]
[344997160,1733913047955,-500.0,0.00024989,2]
[344997162,1733913047967,-500.0,0.00024989,2]
[344997164,1733913047979,-500.0,0.00024989,2]
[344997166,1733913047990,-500.0,0.00024989,2]
[344997168,1733913048001,-500.0,0.00024989,2]
[344997170,1733913048013,-500.0,0.00024989,2]
[344997172,1733913048024,-500.0,0.00024989,2]
[344997175,1733913048036,-298.77613637,0.00024989,2]
[344997177,1733913048048,-500.0,0.00024989,2]
[344997179,1733913048060,-500.0,0.00024989,2]
[344997181,1733913048071,-500.0,0.00024989,2]
[344997184,1733913048083,-500.0,0.00024989,2]
[344997186,1733913048095,-486.7906403,0.00024989,2]
[344997188,1733913048107,-500.0,0.00024989,2]
[344997190,1733913048118,-500.0,0.00024989,2]
[344997192,1733913048129,-500.0,0.00024989,2]
[344997195,1733913048141,-500.0,0.00024989,2]
[344997197,1733913048152,-500.0,0.00024989,2]
[344997199,1733913048164,-500.0,0.00024989,2]
[344997201,1733913048175,-500.0,0.00024989,2]
[344997203,1733913048186,-500.0,0.00024989,2]
[344997206,1733913048197,-500.0,0.00024989,2]
[344997208,1733913048209,-500.0,0.00024989,2]
[344997222,1733913048342,-500.0,0.00024989,2]
[344997224,1733913048360,-500.0,0.00024989,2]
[344997226,1733913048371,-500.0,0.00024989,2]
[344997228,1733913048387,-500.0,0.00024989,2]
[344997230,1733913048398,-500.0,0.00024989,2]
[344997232,1733913048409,-500.0,0.00024989,2]
[344997234,1733913048420,-500.0,0.00024989,2]
[344997236,1733913048429,-500.0,0.00024989,2]
[344997238,1733913048440,-500.0,0.00024989,2]
[344997240,1733913048450,-620.06670625,0.00024989,2]
[344997242,1733913048462,-500.0,0.00024989,2]
[344997245,1733913048472,-500.0,0.00024989,2]
[344997246,1733913048482,-500.0,0.00024989,2]
[344997249,1733913048492,-500.0,0.00024989,2]
[344997250,1733913048503,-500.0,0.00024989,2]
[344997253,1733913048514,-500.0,0.00024989,2]
[344997255,1733913048524,-500.0,0.00024989,2]
[344997257,1733913048535,-174804.3181821,0.0002499,2]
[344997259,1733913048544,-1191.24609593,0.0002499,2]
[344997261,1733913048554,-69597.97795869,0.0002499,5]
[344997263,1733913048565,-209.88324744,0.00024999,2]
[344997265,1733913048575,-244.94728739,0.00024999,2]
[344997267,1733913048584,-583.17770602,0.00024999,2]
[344997269,1733913048595,-171.46310117,0.00024999,2]
[344997271,1733913048605,-1540.47081122,0.00025,7]
[344997273,1733913048615,-331725.81474705,0.00025,2]
[344997275,1733913048624,-10364.0,0.00025,2]
[344997277,1733913048634,-158.36732543,0.00025453,2]
[344997279,1733913048645,-160.461654,0.00025493,2]
[344997281,1733913048654,-160.461654,0.00025501,2]
[344997283,1733913048664,-160.461654,0.00025509,2]
[344997285,1733913048673,-160.461654,0.00025517,2]
[344997287,1733913048682,-1000.0,0.00025521,2]
[344997289,1733913048692,-801.6954452,0.00025521,2]
[344997291,1733913048702,-160.461654,0.00025525,2]
[344997293,1733913048713,-160.461654,0.00025533,2]
[344997295,1733913048722,-160.461654,0.00025541,2]
[344997297,1733913048731,-160.461654,0.00025549,2]
[344997299,1733913048740,-160.461654,0.00025557,2]
[344997301,1733913048749,-160.461654,0.00025565,2]
[344997303,1733913048759,-160.461654,0.00025573,2]
[344997304,1733913048768,-160.461654,0.00025581,2]
[344997306,1733913048777,-160.461654,0.00025589,2]
[344997308,1733913048786,-160.461654,0.00025597,2]
[344997310,1733913048795,-500.0,0.000256,2]
[344997311,1733913048804,-500.0,0.000256,2]
[344997313,1733913048817,-500.0,0.000256,2]
[344997315,1733913048827,-160.461654,0.00025605,2]
[344997316,1733913048836,-160.461654,0.00025613,2]
[344997318,1733913048849,-160.461654,0.00025621,2]
[344997319,1733913048859,-170.720112,0.00025777,2]
[344997320,1733913048869,-1950.617798,0.00026,30]
[344997321,1733913048878,-4505.47044127,0.00026116,2]
[344997322,1733913048889,-420.0,0.00026143,2]
[344997323,1733913048898,-1000.0,0.00026148,2]
[344997324,1733913048907,-150.50327989,0.00026148,2]
[344997325,1733913048917,-158.36732543,0.00026305,2]
[344997326,1733913048926,-168.495063,0.00026357,2]
[344997327,1733913048936,-420.0,0.00026521,2]
[344997328,1733913048945,-1419.46053732,0.00026522,2]
[344997329,1733913048957,-168.495063,0.00026639,2]
[344997330,1733913048967,-500.0,0.00026773,2]
[344997331,1733913048977,-500.0,0.00026773,2]
[344997332,1733913048987,-500.0,0.00026773,2]
[344997333,1733913048997,-500.0,0.00026773,2]
[344997334,1733913049006,-500.0,0.00026773,2]
[344997335,1733913049016,-323.76396056,0.00026773,2]
[344997336,1733913049026,-500.53406596,0.00026773,2]
[344997337,1733913049035,-500.0,0.00026773,2]
[344997338,1733913049045,-558.0386086,0.00026773,2]
[344997339,1733913049055,-500.95502025,0.00026773,2]
[344997340,1733913049064,-176.13,0.0002678,2]
[344997341,1733913049073,-151.0,0.00026787,7]
[344997342,1733913049083,-186.868,0.00026789,14]
[344997343,1733913049093,-196522.88370249,0.0002679,120]
[344997344,1733913049103,-380.0,0.00026881,2]
[344997345,1733913049112,-168.495063,0.0002692,2]
[344997346,1733913049121,-188.362683,0.00026921,2]
[344997347,1733913049131,-1500.0,0.0002715,2]
[344997348,1733913049141,-158.36732543,0.00027156,2]
[344997349,1733913049150,-168.495063,0.00027202,2]
[344997350,1733913049160,-228.86328396,0.00027299,2]
[344997351,1733913049169,-1000.0,0.00027321,2]
[344997352,1733913049178,-495.04968941,0.00027321,2]
[344997353,1733913049188,-298.18851293,0.00027321,2]
[344997354,1733913049198,-652.24452689,0.00027321,2]
[344997355,1733913049208,-1110.21028873,0.00027321,2]
[344997356,1733913049219,-1000.0,0.00027321,2]
[344997357,1733913049229,-4505.47044127,0.00027332,2]
[344997358,1733913049239,-168.495063,0.00027483,2]
[344997359,1733913049249,-617.810953,0.0002749,2]
[344997360,1733913049258,-168.495063,0.00027765,2]
[344997361,1733913049268,-19999.970003,0.00028,10]
[344997362,1733913049277,-158.36732543,0.00028008,2]
[344997363,1733913049286,-168.495063,0.00028046,2]
[344997364,1733913049295,-1015.15016737,0.00028322,5]
[344997365,1733913049305,-1500.0,0.00028322,5]
[344997366,1733913049314,-168.495063,0.00028328,2]
[344997367,1733913049323,-587.0,0.00028347,2]
[344997368,1733913049333,-447.438,0.0002836,2]
[344997369,1733913049342,-189.597937,0.00028431,2]
[344997370,1733913049351,-2000.0,0.00028447,5]
[344997371,1733913049361,-500.0,0.00028473,5]
[344997372,1733913049371,-605.89930741,0.00028473,5]
[344997373,1733913049381,-500.0,0.00028473,5]
[344997374,1733913049390,-570.00892383,0.0002848,2]
[344997375,1733913049399,-176.13,0.00028485,2]
[344997376,1733913049408,-500.0,0.00028498,7]
[344997377,1733913049418,-500.0,0.00028499,2]
[344997378,1733913049427,-500.0,0.00028499,2]
[344997379,1733913049436,-500.0,0.00028499,2]
[344997380,1733913049446,-500.0,0.00028499,2]
[344997381,1733913049456,-522.15197559,0.00028499,2]
[344997382,1733913049468,-500.0,0.00028499,7]
[344997383,1733913049478,-28827.34127892,0.000285,2]
[344997384,1733913049488,-22292.70797853,0.000285,2]
[344997385,1733913049497,-151.0,0.000285,7]
[344997386,1733913049507,-151.0,0.000285,7]
[344997387,1733913049517,-263.629838,0.000285,7]
[344997388,1733913049527,-151.0,0.000285,7]
[344997389,1733913049537,-151.0,0.000285,7]
[344997390,1733913049547,-151.0,0.000285,7]
[344997391,1733913049556,-151.0,0.000285,7]
[344997392,1733913049566,-4505.47044127,0.00028547,2]
[344997393,1733913049576,-158.6931642,0.00028664,2]
[344997394,1733913049588,-158.36732543,0.00028859,2]
[344997395,1733913049598,-449.56111561,0.00028878,2]
[344997396,1733913049607,-302.75782099,0.00029,2]
[344997397,1733913049617,-151.0,0.00029021,7]
[344997398,1733913049627,-151.0,0.00029021,7]
[344997399,1733913049638,-180.25443,0.00029021,7]
[344997400,1733913049649,-180.25443,0.00029021,7]
[344997401,1733913049659,-1656.6155824,0.00029103,2]
[344997402,1733913049669,-587.0,0.00029173,2]
[344997403,1733913049679,-151.0,0.000292,16]
[344997404,1733913049689,-1656.6155824,0.00029285,2]
[344997405,1733913049699,-302.75782099,0.0002929,2]
[344997406,1733913049708,-151.0,0.000293,14]
[344997407,1733913049721,-446.318,0.0002933,120]
[344997408,1733913049730,-1656.6155824,0.00029466,2]
[344997409,1733913049740,-151.0,0.000295,12]
[344997410,1733913049749,-151.0,0.000295,19]
[344997411,1733913049759,-176.56,0.00029515,120]
[344997412,1733913049768,-150.5,0.00029525,120]
[344997413,1733913049778,-606.4307941,0.00029552,4]
[344997414,1733913049787,-151.0,0.00029552,7]
[344997415,1733913049797,-151.0,0.00029552,7]
[344997416,1733913049807,-151.0,0.00029552,7]
[344997417,1733913049820,-151.0,0.00029552,7]
[344997418,1733913049830,-151.0,0.00029552,7]
[344997419,1733913049839,-151.0,0.00029552,7]
[344997420,1733913049849,-153.008142,0.00029552,7]
[344997421,1733913049859,-302.75782099,0.0002958,2]
[344997422,1733913049868,-151.0,0.000296,13]
[344997423,1733913049878,-151.0,0.000296,11]
[344997424,1733913049889,-2000.0,0.0002962,5]
[344997425,1733913049899,-1225.91598333,0.00029643,7]
[344997426,1733913049909,-1656.6155824,0.00029648,2]
[344997427,1733913049919,-151.0,0.000297,13]
[344997428,1733913049928,-151.0,0.000297,15]
[344997429,1733913049938,-158.36732543,0.00029711,2]
[344997430,1733913049947,-4505.47044127,0.00029763,2]
[344997431,1733913049956,-151.0,0.00029788,7]
[344997432,1733913049968,-151.0,0.00029788,7]
[344997433,1733913049977,-533.0,0.00029788,2]
[344997434,1733913049987,-2372.0,0.00029788,2]
[344997435,1733913049996,-2163.0,0.00029788,2]
[344997436,1733913050005,-4500.0,0.000298,30]
[344997437,1733913050015,-29292.64813977,0.000298,120]
[344997438,1733913050024,-1656.6155824,0.0002983,2]
[344997439,1733913050033,-153.0,0.0002984,2]
[344997440,1733913050042,-153.0,0.0002984,2]
[344997441,1733913050051,-553.26990082,0.0002985,2]
[344997442,1733913050060,-160.0,0.00029862,10]
[344997443,1733913050070,-1000.0,0.00029862,7]
[344997444,1733913050080,-151.0,0.00029863,7]
[344997445,1733913050090,-151.0,0.00029863,7]
[344997446,1733913050099,-151.0,0.00029863,7]
[344997447,1733913050109,-151.0,0.00029863,7]
[344997448,1733913050118,-151.0,0.00029863,7]
[344997449,1733913050127,-151.841148,0.00029863,7]
[344997450,1733913050137,-151.0,0.00029863,7]
[344997451,1733913050146,-151.0,0.00029863,7]
[344997452,1733913050155,-151.0,0.00029863,7]
[344997453,1733913050164,-151.0,0.00029863,7]
[344997454,1733913050173,-151.0,0.00029863,7]
[344997455,1733913050182,-151.0,0.00029863,7]
[344997456,1733913050192,-151.0,0.00029863,7]
[344997457,1733913050201,-151.0,0.00029863,7]
[344997458,1733913050211,-151.0,0.00029863,7]
[344997459,1733913050226,-151.0,0.00029863,7]
[344997460,1733913050235,-151.0,0.00029863,7]
[344997461,1733913050244,-151.0,0.00029863,7]
[344997462,1733913050254,-151.0,0.00029863,7]
[344997463,1733913050263,-296.012728,0.00029863,7]
[344997464,1733913050272,-151.0,0.00029863,7]
[344997465,1733913050281,-151.0,0.00029863,7]
[344997466,1733913050290,-151.0,0.00029863,7]
[344997467,1733913050299,-151.0,0.00029863,7]
[344997468,1733913050310,-151.0,0.00029863,7]
[344997469,1733913050319,-151.0,0.00029863,7]
[344997470,1733913050328,-151.0,0.00029863,7]
[344997471,1733913050338,-151.0,0.00029863,7]
[344997472,1733913050347,-153.10357,0.00029863,7]
[344997473,1733913050357,-272.108489,0.00029863,7]
[344997474,1733913050366,-272.108489,0.00029863,7]
[344997475,1733913050375,-272.108489,0.00029863,7]
[344997476,1733913050385,-272.108489,0.00029863,7]
[344997477,1733913050394,-272.108489,0.00029863,7]
[344997478,1733913050404,-272.108489,0.00029863,7]
[344997479,1733913050413,-272.108489,0.00029863,7]
[344997480,1733913050423,-272.108489,0.00029863,7]
[344997481,1733913050432,-272.108489,0.00029863,7]
[344997482,1733913050442,-272.108489,0.00029863,7]
[344997483,1733913050452,-272.108489,0.00029863,7]
[344997484,1733913050461,-272.108489,0.00029863,7]
[344997485,1733913050472,-272.108489,0.00029863,7]
[344997486,1733913050482,-272.108489,0.00029863,7]
[344997487,1733913050491,-151.0,0.00029863,7]
[344997488,1733913050500,-151.0,0.00029863,7]
[344997489,1733913050509,-151.0,0.00029863,7]
[344997490,1733913050518,-151.0,0.00029863,7]
[344997491,1733913050527,-151.0,0.00029863,7]
[344997492,1733913050537,-151.0,0.00029863,7]
[344997493,1733913050546,-151.0,0.00029863,7]
[344997494,1733913050555,-245.569216,0.00029863,7]
[344997495,1733913050565,-151.0,0.00029863,7]
[344997496,1733913050574,-151.0,0.00029863,7]
[344997497,1733913050583,-151.0,0.00029863,7]
[344997498,1733913050592,-151.0,0.00029863,7]
[344997499,1733913050601,-151.0,0.00029863,7]
[344997500,1733913050610,-151.0,0.00029863,7]
[344997501,1733913050619,-151.0,0.00029863,7]
[344997502,1733913050629,-174.991745,0.00029863,7]
[344997503,1733913050638,-151.0,0.00029863,7]
[344997504,1733913050646,-278.171791,0.00029863,7]
[344997505,1733913050655,-159.894083,0.00029863,7]
[344997506,1733913050746,-501.98098709,0.00029863,7]
[344997507,1733913050756,-500.0,0.00029863,7]
[344997508,1733913050767,-502.78557684,0.00029863,7]
[344997509,1733913050776,-151.0,0.00029863,7]
[344997510,1733913050785,-151.0,0.00029863,7]
[344997511,1733913050794,-151.0,0.00029863,7]
[344997512,1733913050803,-151.0,0.00029863,7]
[344997513,1733913050818,-500.0,0.00029863,7]
[344997514,1733913050828,-500.0,0.00029863,7]
[344997515,1733913050838,-500.0,0.00029863,7]
[344997516,1733913050846,-502.95651006,0.00029863,7]
[344997517,1733913050855,-500.0,0.00029863,7]
[344997518,1733913050864,-424.63758225,0.00029863,7]
[344997519,1733913050873,-500.0,0.00029863,7]
[344997520,1733913050883,-500.0,0.00029863,7]
[344997521,1733913050894,-500.0,0.00029863,7]
[344997522,1733913050903,-500.0,0.00029863,7]
[344997523,1733913050913,-256.6484468,0.00029863,7]
[344997524,1733913050923,-500.0,0.00029863,7]
[344997525,1733913050933,-500.0,0.00029863,7]
[344997526,1733913050942,-500.0,0.00029863,7]
[344997527,1733913050952,-509.40577235,0.00029863,7]
[344997528,1733913050961,-500.0,0.00029863,7]
[344997529,1733913050972,-500.0,0.00029863,7]
[344997530,1733913050982,-500.0,0.00029863,7]
[344997531,1733913050992,-500.0,0.00029863,7]
[344997532,1733913051001,-342.2841208,0.00029863,7]
[344997533,1733913051011,-500.0,0.00029863,2]
[344997534,1733913051020,-306.64882751,0.00029863,2]
[344997535,1733913051030,-500.0,0.00029863,7]
[344997536,1733913051043,-500.0,0.00029863,7]
[344997537,1733913051059,-500.0,0.00029863,7]
[344997538,1733913051069,-500.0,0.00029863,7]
[344997539,1733913051079,-500.0,0.00029863,7]
[344997540,1733913051090,-500.0,0.00029863,7]
[344997541,1733913051100,-500.0,0.00029863,7]
[344997542,1733913051110,-500.0,0.00029863,7]
[344997543,1733913051120,-500.0,0.00029863,7]
[344997544,1733913051129,-500.0,0.00029863,7]
[344997545,1733913051139,-500.0,0.00029863,7]
[344997546,1733913051148,-151.0,0.00029863,7]
[344997547,1733913051158,-151.0,0.00029863,7]
[344997548,1733913051167,-151.0,0.00029863,7]
[344997549,1733913051177,-151.0,0.00029863,7]
[344997550,1733913051187,-151.0,0.00029863,7]
[344997551,1733913051197,-151.0,0.00029863,7]
[344997552,1733913051207,-151.0,0.00029863,7]
[344997553,1733913051220,-500.0,0.00029863,7]
[344997554,1733913051229,-500.0,0.00029863,7]
[344997555,1733913051238,-500.0,0.00029863,7]
[344997556,1733913051247,-500.0,0.00029863,7]
[344997557,1733913051257,-500.0,0.00029863,7]
[344997558,1733913051266,-512.02430481,0.00029863,7]
[344997559,1733913051276,-500.0,0.00029863,7]
[344997560,1733913051285,-500.0,0.00029863,7]
[344997561,1733913051295,-500.0,0.00029863,7]
[344997562,1733913051303,-500.0,0.00029863,7]
[344997563,1733913051312,-500.0,0.00029863,7]
[344997564,1733913051321,-197.21625064,0.00029863,7]
[344997565,1733913051330,-500.0,0.00029863,7]
[344997566,1733913051339,-151.0,0.00029863,7]
[344997567,1733913051349,-500.0,0.00029863,7]
[344997568,1733913051359,-151.0,0.00029863,7]
[344997569,1733913051368,-500.0,0.00029863,7]
[344997570,1733913051377,-500.0,0.00029863,7]
[344997571,1733913051388,-477.91929343,0.00029863,7]
[344997572,1733913051398,-500.0,0.00029863,7]
[344997573,1733913051408,-500.0,0.00029863,7]
[344997574,1733913051418,-500.0,0.00029863,7]
[344997575,1733913051427,-500.0,0.00029863,7]
[344997576,1733913051437,-500.0,0.00029863,7]
[344997577,1733913051446,-271.40682959,0.00029863,7]
[344997578,1733913051456,-500.0,0.00029863,7]
[344997579,1733913051466,-500.0,0.00029863,7]
[344997580,1733913051476,-500.0,0.00029863,7]
[344997581,1733913051485,-552.6801115,0.00029863,7]
[344997582,1733913051495,-500.0,0.00029863,7]
[344997583,1733913051504,-500.0,0.00029863,7]
[344997584,1733913051513,-500.0,0.00029863,7]
[344997585,1733913051523,-213.19944306,0.00029863,7]
[344997586,1733913051533,-500.0,0.00029863,7]
[344997587,1733913051542,-500.0,0.00029863,7]
[344997588,1733913051552,-500.0,0.00029863,7]
[344997589,1733913051561,-510.08844295,0.00029863,7]
[344997590,1733913051571,-500.0,0.00029863,7]
[344997591,1733913051581,-500.0,0.00029863,7]
[344997592,1733913051590,-500.0,0.00029863,7]
[344997593,1733913051599,-503.1405729,0.00029863,7]
[344997594,1733913051609,-500.0,0.00029863,7]
[344997595,1733913051619,-159.081918,0.00029863,7]
[344997596,1733913051629,-507.83626241,0.00029863,7]
[344997597,1733913051638,-500.0,0.00029863,7]
[344997598,1733913051647,-500.0,0.00029863,7]
[344997599,1733913051657,-545.29339213,0.00029863,7]
[344997600,1733913051666,-200.0,0.00029863,7]
[344997601,1733913051676,-200.0,0.00029863,7]
[344997602,1733913051685,-200.0,0.00029863,7]
[344997603,1733913051694,-200.0,0.00029863,7]
[344997604,1733913051704,-511.61305369,0.00029863,7]
[344997605,1733913051713,-500.0,0.00029863,7]
[344997606,1733913051725,-374.94906093,0.00029863,7]
[344997607,1733913051734,-500.0,0.00029863,7]
[344997608,1733913051743,-500.0,0.00029863,7]
[344997609,1733913051753,-300.47912412,0.00029863,7]
[344997610,1733913051762,-500.0,0.00029863,7]
[344997611,1733913051771,-500.0,0.00029863,7]
[344997612,1733913051781,-151.72867534,0.00029863,7]
[344997613,1733913051790,-500.0,0.00029863,7]
[344997614,1733913051800,-491.58894957,0.00029863,7]
[344997615,1733913051809,-478.68245746,0.00029863,7]
[344997616,1733913051822,-500.0,0.00029863,7]
[344997617,1733913051832,-500.0,0.00029863,7]
[344997618,1733913051841,-500.0,0.00029863,7]
[344997619,1733913051850,-500.0,0.00029863,7]
[344997620,1733913051861,-500.0,0.00029863,7]
[344997621,1733913051870,-500.0,0.00029863,7]
[344997622,1733913051879,-500.0,0.00029863,7]
[344997623,1733913051890,-500.0,0.00029863,7]
[344997624,1733913051899,-500.0,0.00029863,7]
[344997625,1733913051908,-500.0,0.00029863,7]
[344997626,1733913051917,-500.0,0.00029863,7]
[344997627,1733913051926,-151.0,0.00029863,7]
[344997628,1733913051936,-500.0,0.00029863,7]
[344997629,1733913051945,-151.0,0.00029863,7]
[344997630,1733913051954,-500.0,0.00029863,7]
[344997631,1733913051963,-151.0,0.00029863,7]
[344997632,1733913051974,-151.0,0.00029863,7]
[344997633,1733913051983,-151.0,0.00029863,7]
[344997634,1733913051993,-151.0,0.00029863,7]
[344997635,1733913052002,-151.0,0.00029863,7]
[344997636,1733913052011,-151.0,0.00029863,7]
[344997637,1733913052020,-500.0,0.00029863,7]
[344997638,1733913052029,-500.0,0.00029863,7]
[344997639,1733913052038,-500.0,0.00029863,7]
[344997640,1733913052047,-500.0,0.00029863,7]
[344997641,1733913052056,-500.0,0.00029863,7]
[344997642,1733913052066,-151.0,0.00029863,7]
[344997643,1733913052075,-500.0,0.00029863,7]
[344997644,1733913052084,-500.0,0.00029863,7]
[344997645,1733913052093,-151.0,0.00029863,7]
[344997646,1733913052102,-500.0,0.00029863,7]
[344997647,1733913052111,-500.0,0.00029863,7]
[344997648,1733913052121,-151.0,0.00029863,7]
[344997649,1733913052130,-500.0,0.00029863,7]
[344997650,1733913052140,-500.0,0.00029863,7]
[344997651,1733913052149,-500.0,0.00029863,7]
[344997652,1733913052158,-500.0,0.00029863,7]
[344997653,1733913052167,-500.0,0.00029863,7]
[344997654,1733913052176,-500.0,0.00029863,7]
[344997655,1733913052185,-151.0,0.00029863,7]
[344997656,1733913052194,-500.0,0.00029863,7]
[344997657,1733913052203,-500.0,0.00029863,7]
[344997658,1733913052212,-500.0,0.00029863,7]
[344997659,1733913052223,-151.0,0.00029863,7]
[344997660,1733913052232,-500.0,0.00029863,7]
[344997661,1733913052241,-151.0,0.00029863,7]
[344997662,1733913052250,-500.0,0.00029863,7]
[344997663,1733913052259,-500.0,0.00029863,7]
[344997664,1733913052268,-151.0,0.00029863,7]
[344997665,1733913052276,-500.0,0.00029863,7]
[344997666,1733913052285,-500.0,0.00029863,7]
[344997667,1733913052294,-500.0,0.00029863,7]
[344997668,1733913052303,-220.71226,0.00029863,7]
[344997669,1733913052312,-500.0,0.00029863,7]
[344997670,1733913052321,-500.0,0.00029863,7]
[344997671,1733913052330,-153.0,0.00029863,7]
[344997672,1733913052339,-733.04344,0.00029863,7]
[344997673,1733913052349,-733.04344,0.00029863,7]
[344997674,1733913052358,-500.0,0.00029863,7]
[344997675,1733913052368,-733.04344,0.00029863,7]
[344997676,1733913052377,-500.0,0.00029863,7]
[344997677,1733913052386,-733.04344,0.00029863,7]
[344997678,1733913052396,-733.04344,0.00029863,7]
[344997679,1733913052405,-733.04344,0.00029863,7]
[344997680,1733913052414,-733.04344,0.00029863,7]
[344997681,1733913052424,-733.04344,0.00029863,7]
[344997682,1733913052433,-733.04344,0.00029863,7]
[344997683,1733913052442,-733.04344,0.00029863,7]
[344997684,1733913052451,-733.04344,0.00029863,7]
[344997685,1733913052461,-733.04344,0.00029863,7]
[344997686,1733913052472,-733.04344,0.00029863,7]
[344997687,1733913052481,-733.04344,0.00029863,7]
[344997688,1733913052491,-500.0,0.00029863,7]
[344997689,1733913052501,-500.0,0.00029863,7]
[344997690,1733913052510,-500.0,0.00029863,7]
[344997691,1733913052519,-375.58041085,0.00029863,7]
[344997692,1733913052528,-500.0,0.00029863,7]
[344997693,1733913052537,-500.0,0.00029863,7]
[344997694,1733913052547,-500.0,0.00029863,7]
[344997695,1733913052556,-500.0,0.00029863,7]
[344997696,1733913052565,-500.0,0.00029863,7]
[344997697,1733913052575,-500.0,0.00029863,7]
[344997698,1733913052584,-500.0,0.00029863,7]
[344997699,1733913052593,-500.0,0.00029863,7]
[344997700,1733913052603,-500.0,0.00029863,7]
[344997701,1733913052612,-500.0,0.00029863,7]
[344997702,1733913052622,-500.0,0.00029863,7]